fUSD/lending_fUSD_20240421
["ID","MTS","AMOUNT","RATE_DAILY","PERIOD"]
[323135147,1713703855227,-645.21,0.00017534,2]
[323135148,1713703855237,-691.32,0.00017534,2]
[323135149,1713703855247,-705.19,0.00017534,2]
[323135150,1713703855257,-150.0,0.00017534,2]
[323135151,1713703855266,-500.0,0.00017534,2]
[323135152,1713703855275,-643.31,0.00017534,2]
[323135153,1713703855285,-500.0,0.00017534,2]
[323135154,1713703855295,-500.0,0.00017534,2]
[323135155,1713703855304,-500.0,0.00017534,2]
[323135156,1713703855315,-1033.5,0.00017534,2]
[323135157,1713703855325,-998.78,0.00017534,2]
[323135158,1713703855334,-715.09,0.00017534,2]
[323135159,1713703855343,-1195.92,0.00017534,2]
[323135160,1713703855353,-500.0,0.00017534,2]
[323135161,1713703855362,-1091.89,0.00017534,2]
[323135162,1713703855371,-924.95,0.00017534,2]
[323135163,1713703855381,-736.26,0.00017534,2]
[323135164,1713703855390,-631.94,0.00017534,2]
[323135165,1713703855400,-1041.24,0.00017534,2]
[323135166,1713703855410,-1020.3,0.00017534,2]
[323135167,1713703855420,-536.71,0.00017534,2]
[323135168,1713703855430,-500.0,0.00017534,2]
[323135169,1713703855439,-500.0,0.00017534,2]
[323135170,1713703855449,-501.07,0.00017534,2]
[323135171,1713703855458,-815.09,0.00017534,2]
[323135172,1713703855467,-500.0,0.00017534,2]
[323135173,1713703855477,-556.84,0.00017534,2]
[323135174,1713703855486,-500.0,0.00017534,2]
[323135175,1713703855496,-1393.98,0.00017534,2]
[323135176,1713703855505,-957.57,0.00017534,2]
[323135177,1713703855515,-500.0,0.00017534,2]
[323135178,1713703855524,-904.56,0.00017534,2]
[323135179,1713703855534,-921.66,0.00017534,2]
[323135180,1713703855543,-1599.79,0.00017534,2]
[323135181,1713703855572,-500.0,0.00017534,2]
[323135182,1713703855581,-500.0,0.00017534,2]
[323135183,1713703855590,-500.0,0.00017534,2]
[323135184,1713703855600,-500.0,0.00017534,2]
[323135185,1713703855609,-701.7,0.00017534,2]
[323135186,1713703855619,-651.300516,0.00017534,2]
[323135187,1713703855628,-500.0,0.00017534,2]
[323135188,1713703855638,-954.11,0.00017534,2]
[323135189,1713703855647,-651.300522,0.00017534,2]
[323135190,1713703855657,-1515.84,0.00017534,2]
[323135191,1713703855667,-635.48,0.00017534,2]
[323135192,1713703855677,-818.41,0.00017534,2]
[323135193,1713703855686,-500.0,0.00017534,2]
[323135194,1713703855696,-9640.44,0.00017534,2]
[323135195,1713703855706,-806.22,0.00017534,2]
[323135196,1713703855716,-1307.97,0.00017534,2]
[323135197,1713703855725,-841.31,0.00017534,2]
[323135198,1713703855735,-744.07,0.00017534,2]
[323135199,1713703855745,-661.88,0.00017534,2]
[323135200,1713703855902,-500.31,0.00017534,2]
[323135201,1713703855930,-500.0,0.00017534,2]
[323135202,1713703855939,-348.28,0.00017534,2]
[323135203,1713703855949,-500.0,0.00017534,2]
[323135204,1713703855958,-500.0,0.00017534,2]
[323135205,1713703855967,-564.96,0.00017534,2]
[323135206,1713703855976,-500.0,0.00017534,2]
[323135207,1713703855985,-1109.92,0.00017534,2]
[323135208,1713703855994,-500.0,0.00017534,2]
[323135209,1713703856003,-781.83,0.00017534,2]
[323135210,1713703856013,-2136.36,0.00017534,2]
[323135211,1713703856023,-686.02,0.00017534,2]
[323135212,1713703856032,-2698.1,0.00017534,2]
[323135213,1713703856042,-673.9,0.00017534,2]
[323135214,1713703856051,-522.53,0.00017534,2]
[323135215,1713703856062,-500.0,0.00017534,2]
[323135216,1713703856071,-794.51,0.00017534,2]
[323135217,1713703856081,-988.09,0.00017534,2]
[323135218,1713703856090,-687.74,0.00017534,2]
[323135219,1713703856102,-834.62,0.00017534,2]
[323135220,1713703856111,-218.31034,0.00017534,2]
[323135221,1713703856121,-1366.95,0.00017534,2]
[323135222,1713703856130,-566.87,0.00017534,2]
[323135223,1713703856140,-1307.05,0.00017534,2]
[323135224,1713703856149,-633.04,0.00017534,2]
[323135225,1713703856159,-1063.71,0.00017534,2]
[323135226,1713703856168,-218.31034,0.00017534,2]
[323135227,1713703856177,-726.14,0.00017534,2]
[323135228,1713703856186,-657.69,0.00017534,2]
[323135229,1713703856196,-627.06,0.00017534,2]
[323135230,1713703856205,-663.49,0.00017534,2]
[323135231,1713703856214,-3069.34,0.00017534,2]
[323135232,1713703856223,-1206.78,0.00017534,2]
[323135233,1713703856233,-1667.8,0.00017534,2]
[323135234,1713703856243,-1235.07,0.00017534,2]
[323135235,1713703856252,-785.6,0.00017534,2]
[323135236,1713703856261,-1777.79,0.00017534,2]
[323135237,1713703856271,-702.79,0.00017534,2]
[323135238,1713703856280,-1164.03,0.00017534,2]
[323135239,1713703856289,-793.56,0.00017534,2]
[323135240,1713703856298,-500.0,0.00017534,2]
[323135241,1713703856307,-690.91,0.00017534,2]
[323135242,1713703856317,-1011.83,0.00017534,2]
[323135243,1713703856326,-633.58,0.00017534,2]
[323135244,1713703856335,-500.0,0.00017534,2]
[323135245,1713703856344,-934.07,0.00017534,2]
[323135246,1713703856353,-804.03,0.00017534,2]
[323135247,1713703856363,-1353.25,0.00017534,2]
[323135248,1713703856372,-276.80150374,0.00017534,2]
[323135249,1713703856398,-223.19849626,0.00017534,2]
[323135250,1713703856408,-649.86,0.00017534,2]
[323135251,1713703856417,-865.97,0.00017534,2]
[323135252,1713703856427,-1310.74008607,0.00017534,2]
[323135253,1713703856805,-58.65991393,0.00017534,2]
[323135254,1713703856816,-747.02,0.00017534,2]
[323135255,1713703856825,-1369.91,0.00017534,2]
[323135256,1713703856836,-500.0,0.00017534,2]
[323135257,1713703856846,-172.00277603,0.00017534,2]
[323135258,1713703856866,-910.86722397,0.00017534,2]
[323135259,1713703856877,-1282.09,0.00017534,2]
[323135260,1713703856886,-1069.02842348,0.00017534,2]
[323135261,1713703856898,-728.79434185,0.00017534,2]
[323135262,1713703856909,-862.3800003,0.00017534,2]
[323135263,1713703856928,-286.70691242,0.00017534,2]
[323135264,1713703856952,-3290.12252339,0.00017233,2]
[323135265,1713703856962,-3246.60267663,0.00017534,2]
[323135266,1713703856975,-5398.16764532,0.00017534,2]
[323135267,1713703856984,-500.0,0.00017534,2]
[323135268,1713703856994,-500.0,0.00017534,2]
[323135269,1713703857003,-780.15,0.00017534,2]
[323135270,1713703857012,-1338.42,0.00017534,2]
[323135271,1713703857024,-1407.68,0.00017534,2]
[323135272,1713703857035,-500.0,0.00017534,2]
[323135273,1713703857045,-897.72,0.00017534,2]
[323135274,1713703857054,-500.0,0.00017534,2]
[323135275,1713703857067,-881.82,0.00017534,2]
[323135276,1713703857077,-1814.96,0.00017534,2]
[323135277,1713703857087,-506.59,0.00017534,2]
[323135278,1713703857096,-1994.37,0.00017534,2]
[323135279,1713703857106,-500.06,0.00017534,2]
[323135280,1713703857115,-837.83,0.00017534,2]
[323135281,1713703857124,-641.08,0.00017534,2]
[323135282,1713703857133,-774.16,0.00017534,2]
[323135283,1713703857142,-679.73,0.00017534,2]
[323135284,1713703857152,-1410.25,0.00017534,2]
[323135285,1713703857161,-975.76,0.00017534,2]
[323135286,1713703857170,-599.79,0.00017534,2]
[323135287,1713703857179,-1592.34,0.00017534,2]
[323135288,1713703857189,-359.59272689,0.00017534,2]
[323135289,1713703857201,-555.61130365,0.00017534,2]
[323135290,1713703857669,-1000.0,0.00016,2]
[323135291,1713703857678,-1385.8947468,0.00017212,2]
[323135292,1713703857688,-249.96596946,0.00017534,2]
[323135293,1713703857697,-536.61,0.00017534,2]
[323135294,1713703857706,-1112.17,0.00017534,2]
[323135295,1713703857715,-500.0,0.00017534,2]
[323135296,1713703857724,-500.0,0.00017534,2]
[323135297,1713703857733,-734.8,0.00017534,2]
[323135298,1713703857743,-1364.27,0.00017534,2]
[323135299,1713703857752,-500.0,0.00017534,2]
[323135300,1713703857761,-500.0,0.00017534,2]
[323135301,1713703857770,-500.0,0.00017534,2]
[323135302,1713703857779,-868.35,0.00017534,2]
[323135303,1713703857788,-817.11,0.00017534,2]
[323135304,1713703857798,-500.0,0.00017534,2]
[323135305,1713703857807,-601.46,0.00017534,2]
[323135306,1713703857818,-1398.98,0.00017534,2]
[323135307,1713703857827,-1865.99,0.00017534,2]
[323135308,1713703857836,-530.16,0.00017534,2]
[323135309,1713703857845,-2047.34,0.00017534,2]
[323135310,1713703857854,-793.89,0.00017534,2]
[323135311,1713703857863,-500.0,0.00017534,2]
[323135312,1713703857873,-606.24,0.00017534,2]
[323135313,1713703857882,-500.0,0.00017534,2]
[323135314,1713703857891,-500.0,0.00017534,2]
[323135315,1713703857901,-1170.77,0.00017534,2]
[323135316,1713703857910,-575.02,0.00017534,2]
[323135317,1713703857919,-595.22,0.00017534,2]
[323135318,1713703857929,-1593.43,0.00017534,2]
[323135319,1713703857939,-604.06,0.00017534,2]
[323135320,1713703857951,-702.98,0.00017534,2]
[323135321,1713703857961,-2060.1,0.00017534,2]
[323135322,1713703857971,-335.78480384,0.00017534,2]
[323135323,1713703857980,-926.58,0.00017534,2]
[323135324,1713703857990,-2018.56,0.00017534,2]
[323135325,1713703857999,-873.45,0.00017534,2]
[323135326,1713703858008,-607.23,0.00017534,2]
[323135327,1713703858017,-500.0,0.00017534,2]
[323135328,1713703858028,-1503.38,0.00017534,2]
[323135329,1713703858039,-605.3,0.00017534,2]
[323135330,1713703858048,-847.45,0.00017534,2]
[323135331,1713703858058,-1239.54,0.00017534,2]
[323135332,1713703858069,-760.18,0.00017534,2]
[323135333,1713703858078,-1006.77,0.00017534,2]
[323135334,1713703858087,-1850.19,0.00017534,2]
[323135335,1713703858097,-1602.29,0.00017534,2]
[323135336,1713703858106,-715.92,0.00017534,2]
[323135337,1713703858116,-780.11,0.00017534,2]
[323135338,1713703858125,-991.79,0.00017534,2]
[323135339,1713703858134,-670.99,0.00017534,2]
[323135340,1713703858146,-500.0,0.00017534,2]
[323135341,1713703858155,-500.0,0.00017534,2]
[323135342,1713703858165,-1188.1,0.00017534,2]
[323135343,1713703858174,-500.0,0.00017534,2]
[323135344,1713703858183,-646.16,0.00017534,2]
[323135345,1713703858193,-1590.79,0.00017534,2]
[323135346,1713703858202,-715.59,0.00017534,2]
[323135347,1713703858211,-958.53,0.00017534,2]
[323135348,1713703858221,-554.32,0.00017534,2]
[323135349,1713703858230,-500.0,0.00017534,2]
[323135350,1713703858239,-709.68,0.00017534,2]
[323135351,1713703858248,-1289.35,0.00017534,2]
[323135352,1713703858257,-797.41,0.00017534,2]
[323135353,1713703858267,-781.73,0.00017534,2]
[323135354,1713703858276,-500.0,0.00017534,2]
[323135355,1713703858285,-2874.38,0.00017534,2]
[323135356,1713703858294,-500.0,0.00017534,2]
[323135357,1713703858303,-2659.55,0.00017534,2]
[323135358,1713703858313,-500.0,0.00017534,2]
[323135359,1713703858322,-750.38,0.00017534,2]
[323135360,1713703858332,-945.29,0.00017534,2]
[323135361,1713703858342,-500.0,0.00017534,2]
[323135362,1713703858352,-1789.82,0.00017534,2]
[323135363,1713703858361,-848.01,0.00017534,2]
[323135364,1713703858370,-500.0,0.00017534,2]
[323135365,1713703858380,-1597.32,0.00017534,2]
[323135366,1713703858389,-2231.0,0.00017534,2]
[323135367,1713703858398,-503.03,0.00017534,2]
[323135368,1713703858407,-1727.37,0.00017534,2]
[323135369,1713703858416,-13668.75224195,0.00017582,2]
[323135370,1713703858426,-1369.11,0.00017699,2]
[323135371,1713703858436,-211.789718,0.00017713,2]
[323135372,1713703858446,-3260.258068,0.00017713,2]
[323135373,1713703858455,-2100.0,0.00017753,2]
[323135374,1713703858464,-13668.75224195,0.00017756,2]
[323135375,1713703858473,-1070.54,0.00017787,2]
[323135376,1713703858483,-1000.0,0.000178,2]
[323135377,1713703858492,-700.0,0.000178,3]
[323135378,1713703858501,-526.0,0.000178,2]
[323135379,1713703858511,-2023.07035,0.000178,2]
[323135380,1713703858520,-1070.54,0.00017807,2]
[323135381,1713703858530,-1369.11,0.00017807,2]
[323135382,1713703858539,-630.34,0.00017808,2]
[323135383,1713703858549,-606.55,0.00017808,2]
[323135384,1713703858559,-500.0,0.00017808,2]
[323135385,1713703858569,-794.99,0.00017808,2]
[323135386,1713703858578,-667.15,0.00017808,2]
[323135387,1713703858586,-731.28,0.00017808,2]
[323135388,1713703858595,-500.0,0.00017808,2]
[323135389,1713703858605,-617.43,0.00017808,2]
[323135390,1713703858615,-797.28,0.00017808,2]
[323135391,1713703858625,-870.35,0.00017808,2]
[323135392,1713703858634,-657.43,0.00017808,2]
[323135393,1713703858643,-500.0,0.00017808,2]
[323135394,1713703858652,-564.89,0.00017808,2]
[323135395,1713703858662,-818.54,0.00017808,2]
[323135396,1713703858671,-877.26,0.00017808,2]
[323135397,1713703858681,-1305.63,0.00017808,2]
[323135398,1713703858690,-649.52,0.00017808,2]
[323135399,1713703858699,-815.01,0.00017808,2]
[323135400,1713703858708,-1222.11,0.00017808,2]
[323135401,1713703858718,-700.25,0.00017808,2]
[323135402,1713703858727,-1388.09,0.00017808,2]
[323135403,1713703858736,-537.33,0.00017808,2]
[323135404,1713703858745,-701.07,0.00017808,2]
[323135405,1713703858755,-875.52,0.00017808,2]
[323135406,1713703858764,-500.0,0.00017808,2]
[323135407,1713703858773,-966.81,0.00017808,2]
[323135408,1713703858782,-500.0,0.00017808,2]
[323135409,1713703858792,-787.21,0.00017808,2]
[323135410,1713703858801,-500.0,0.00017808,2]
[323135411,1713703858810,-920.72,0.00017808,2]
[323135412,1713703858821,-948.74,0.00017808,2]
[323135413,1713703858830,-513.32,0.00017808,2]
[323135414,1713703858839,-702.95,0.00017808,2]
[323135415,1713703858849,-2016.61,0.00017808,2]
[323135416,1713703858859,-1035.72,0.00017808,2]
[323135417,1713703858868,-211.1,0.00017808,2]
[323135418,1713703858877,-798.22,0.00017808,2]
[323135419,1713703858887,-1151.14,0.00017808,2]
[323135420,1713703858896,-891.59,0.00017808,2]
[323135421,1713703858905,-1881.96,0.00017808,2]
[323135422,1713703858914,-1284.68,0.00017808,2]
[323135423,1713703858923,-746.21,0.00017808,2]
[323135424,1713703858932,-528.29,0.00017808,2]
[323135425,1713703858941,-1005.87,0.00017808,2]
[323135426,1713703858951,-1895.51,0.00017808,2]
[323135427,1713703858960,-952.01,0.00017808,2]
[323135428,1713703858969,-1290.82,0.00017808,2]
[323135429,1713703858978,-840.27,0.00017808,2]
[323135430,1713703858987,-690.15,0.00017808,2]
[323135431,1713703858996,-500.0,0.00017808,2]
[323135432,1713703859006,-500.0,0.00017808,2]
[323135433,1713703859015,-915.53,0.00017808,2]
[323135434,1713703859026,-959.32,0.00017808,2]
[323135435,1713703859035,-720.36,0.00017808,2]
[323135436,1713703859045,-1127.34,0.00017808,2]
[323135437,1713703859054,-712.54,0.00017808,2]
[323135438,1713703859064,-728.93,0.00017808,2]
[323135439,1713703859073,-837.27,0.00017808,2]
[323135440,1713703859082,-1200.69,0.00017808,2]
[323135441,1713703859091,-446.9,0.00017808,2]
[323135442,1713703859101,-575.82,0.00017808,2]
[323135443,1713703859111,-1491.61,0.00017808,2]
[323135444,1713703859120,-729.42,0.00017808,2]
[323135445,1713703859129,-1071.35,0.00017808,2]
[323135446,1713703859138,-981.15,0.00017808,2]
[323135447,1713703859147,-766.16,0.00017808,2]
[323135448,1713703859156,-500.0,0.00017808,2]
[323135449,1713703859165,-1289.16,0.00017808,2]
[323135450,1713703859174,-756.39,0.00017808,2]
[323135451,1713703859182,-796.74,0.00017808,2]
[323135452,1713703859191,-500.0,0.00017808,2]
[323135453,1713703859200,-453.05186564,0.00017808,2]
[323135454,1713703859209,-500.0,0.00017808,2]
[323135455,1713703859389,-903.36,0.00017808,2]
[323135456,1713703859398,-726.79,0.00017808,2]
[323135457,1713703859407,-154.16,0.00017808,2]
[323135458,1713703859416,-867.78,0.00017808,2]
[323135459,1713703859425,-500.0,0.00017808,2]
[323135460,1713703859434,-500.0,0.00017808,2]
[323135461,1713703859443,-959.32,0.00017808,2]
[323135462,1713703859453,-500.0,0.00017808,2]
[323135463,1713703859462,-500.0,0.00017808,2]
[323135464,1713703859471,-1030.26,0.00017808,2]
[323135465,1713703859480,-1338.06,0.00017808,2]
[323135466,1713703859489,-500.0,0.00017808,2]
[323135467,1713703859498,-547.26,0.00017808,2]
[323135468,1713703859508,-500.0,0.00017808,2]
[323135469,1713703859517,-645.21,0.00017808,2]
[323135470,1713703859529,-691.32,0.00017808,2]
[323135471,1713703859538,-705.19,0.00017808,2]
[323135472,1713703859547,-150.0,0.00017808,2]
[323135473,1713703859557,-500.0,0.00017808,2]
[323135474,1713703859570,-643.31,0.00017808,2]
[323135475,1713703859579,-562.78,0.00017808,2]
[323135476,1713703859590,-500.0,0.00017808,2]
[323135477,1713703859601,-500.0,0.00017808,2]
[323135478,1713703859611,-1033.5,0.00017808,2]
[323135479,1713703859622,-998.78,0.00017808,2]
[323135480,1713703859631,-715.09,0.00017808,2]
[323135481,1713703859641,-782.31905077,0.00017808,2]
[323135482,1713703859660,-413.60094923,0.00017808,2]
[323135483,1713703859670,-304.97901686,0.00017808,2]
[323135484,1713703859680,-1091.89,0.00017808,2]
[323135485,1713703859690,-924.95,0.00017808,2]
[323135486,1713703859700,-736.26,0.00017808,2]
[323135487,1713703859710,-631.94,0.00017808,2]
[323135488,1713703859720,-969.37550945,0.00017808,2]
[323135489,1713703859732,-71.86449055,0.00017808,2]
[323135490,1713703859743,-671.88062537,0.00017808,2]
[323135491,1713703859761,-348.41937463,0.00017808,2]
[323135492,1713703859770,-536.71,0.00017808,2]
[323135493,1713703859780,-500.0,0.00017808,2]
[323135494,1713703859790,-500.0,0.00017808,2]
[323135495,1713703859800,-501.07,0.00017808,2]
[323135496,1713703859810,-815.09,0.00017808,2]
[323135497,1713703859820,-500.0,0.00017808,2]
[323135498,1713703859830,-249.04409809,0.00017808,2]
[323135499,1713703859842,-307.79590191,0.00017808,2]
[323135500,1713703859852,-500.0,0.00017808,2]
[323135501,1713703859861,-1393.98,0.00017808,2]
[323135502,1713703859871,-957.57,0.00017808,2]
[323135503,1713703859881,-256.2,0.00017808,2]
[323135504,1713703859891,-904.56,0.00017808,2]
[323135505,1713703859901,-921.66,0.00017808,2]
[323135506,1713703859911,-1599.79,0.00017808,2]
[323135507,1713703859921,-500.0,0.00017808,2]
[323135508,1713703859930,-500.0,0.00017808,2]
[323135509,1713703859940,-500.0,0.00017808,2]
[323135510,1713703859949,-500.0,0.00017808,2]
[323135511,1713703859959,-500.0,0.00017808,2]
[323135512,1713703859968,-1515.84,0.00017808,2]
[323135513,1713703859978,-818.41,0.00017808,2]
[323135514,1713703859988,-500.0,0.00017808,2]
[323135515,1713703859998,-806.22,0.00017808,2]
[323135516,1713703860008,-1307.97,0.00017808,2]
[323135517,1713703860017,-744.07,0.00017808,2]
[323135518,1713703860031,-661.88,0.00017808,2]
[323135519,1713703860043,-500.31,0.00017808,2]
[323135520,1713703860053,-500.0,0.00017808,2]
[323135521,1713703860063,-500.0,0.00017808,2]
[323135522,1713703860073,-500.0,0.00017808,2]
[323135523,1713703860083,-564.96,0.00017808,2]
[323135524,1713703860093,-500.0,0.00017808,2]
[323135525,1713703860104,-1109.92,0.00017808,2]
[323135526,1713703860114,-781.83,0.00017808,2]
[323135527,1713703860124,-2136.36,0.00017808,2]
[323135528,1713703860133,-686.02,0.00017808,2]
[323135529,1713703860143,-2698.1,0.00017808,2]
[323135530,1713703860152,-673.9,0.00017808,2]
[323135531,1713703860162,-522.53,0.00017808,2]
[323135532,1713703860172,-500.0,0.00017808,2]
[323135533,1713703860181,-794.51,0.00017808,2]
[323135534,1713703860191,-988.09,0.00017808,2]
[323135535,1713703860201,-687.74,0.00017808,2]
[323135536,1713703860210,-834.62,0.00017808,2]
[323135537,1713703860221,-1366.95,0.00017808,2]
[323135538,1713703860231,-566.87,0.00017808,2]
[323135539,1713703860241,-1307.05,0.00017808,2]
[323135540,1713703860251,-633.04,0.00017808,2]
[323135541,1713703860260,-1063.71,0.00017808,2]
[323135542,1713703860270,-726.14,0.00017808,2]
[323135543,1713703860279,-657.69,0.00017808,2]
[323135544,1713703860288,-627.06,0.00017808,2]
[323135545,1713703860298,-663.49,0.00017808,2]
[323135546,1713703860307,-3069.34,0.00017808,2]
[323135547,1713703860318,-1206.78,0.00017808,2]
[323135548,1713703860327,-1667.8,0.00017808,2]
[323135549,1713703860337,-1235.07,0.00017808,2]
[323135550,1713703860346,-785.6,0.00017808,2]
[323135551,1713703860356,-1777.79,0.00017808,2]
[323135552,1713703860366,-702.79,0.00017808,2]
[323135553,1713703860376,-1164.03,0.00017808,2]
[323135554,1713703860386,-793.56,0.00017808,2]
[323135555,1713703860395,-500.0,0.00017808,2]
[323135556,1713703860405,-690.91,0.00017808,2]
[323135557,1713703860415,-1011.83,0.00017808,2]
[323135558,1713703860424,-633.58,0.00017808,2]
[323135559,1713703860434,-500.0,0.00017808,2]
[323135560,1713703860444,-934.07,0.00017808,2]
[323135561,1713703860453,-804.03,0.00017808,2]
[323135562,1713703860462,-1353.25,0.00017808,2]
[323135563,1713703860472,-390.48,0.00017808,2]
[323135564,1713703860481,-649.86,0.00017808,2]
[323135565,1713703860490,-865.97,0.00017808,2]
[323135566,1713703860499,-1369.4,0.00017808,2]
[323135567,1713703860509,-747.02,0.00017808,2]
[323135568,1713703860519,-1369.91,0.00017808,2]
[323135569,1713703860528,-500.0,0.00017808,2]
[323135570,1713703860538,-1082.87,0.00017808,2]
[323135571,1713703860547,-1282.09,0.00017808,2]
[323135572,1713703860557,-500.0,0.00017808,2]
[323135573,1713703860567,-11591.68,0.00017808,2]
[323135574,1713703860576,-500.0,0.00017808,2]
[323135575,1713703860586,-780.15,0.00017808,2]
[323135576,1713703860596,-1338.42,0.00017808,2]
[323135577,1713703860606,-1407.68,0.00017808,2]
[323135578,1713703860615,-500.0,0.00017808,2]
[323135579,1713703860625,-897.72,0.00017808,2]
[323135580,1713703860634,-500.0,0.00017808,2]
[323135581,1713703860644,-881.82,0.00017808,2]
[323135582,1713703860653,-1814.96,0.00017808,2]
[323135583,1713703860663,-506.59,0.00017808,2]
[323135584,1713703860672,-1994.37,0.00017808,2]
[323135585,1713703860682,-500.06,0.00017808,2]
[323135586,1713703860691,-837.83,0.00017808,2]
[323135587,1713703860700,-641.08,0.00017808,2]
[323135588,1713703860710,-774.16,0.00017808,2]
[323135589,1713703860719,-679.73,0.00017808,2]
[323135590,1713703860729,-1410.25,0.00017808,2]
[323135591,1713703860739,-975.76,0.00017808,2]
[323135592,1713703860748,-599.79,0.00017808,2]
[323135593,1713703860758,-1592.34,0.00017808,2]
[323135594,1713703860768,-1165.17,0.00017808,2]
[323135595,1713703860777,-536.61,0.00017808,2]
[323135596,1713703860787,-1112.17,0.00017808,2]
[323135597,1713703860797,-500.0,0.00017808,2]
[323135598,1713703860806,-500.0,0.00017808,2]
[323135599,1713703860817,-734.8,0.00017808,2]
[323135600,1713703860826,-1364.27,0.00017808,2]
[323135601,1713703860836,-500.0,0.00017808,2]
[323135602,1713703860845,-500.0,0.00017808,2]
[323135603,1713703860855,-500.0,0.00017808,2]
[323135604,1713703860864,-868.35,0.00017808,2]
[323135605,1713703860874,-817.11,0.00017808,2]
[323135606,1713703860883,-500.0,0.00017808,2]
[323135607,1713703860894,-601.46,0.00017808,2]
[323135608,1713703860903,-1398.98,0.00017808,2]
[323135609,1713703860912,-1865.99,0.00017808,2]
[323135610,1713703860922,-530.16,0.00017808,2]
[323135611,1713703860932,-2047.34,0.00017808,2]
[323135612,1713703860942,-793.89,0.00017808,2]
[323135613,1713703860951,-500.0,0.00017808,2]
[323135614,1713703860961,-500.0,0.00017808,2]
[323135615,1713703860970,-500.0,0.00017808,2]
[323135616,1713703860980,-1170.77,0.00017808,2]
[323135617,1713703860989,-575.02,0.00017808,2]
[323135618,1713703860999,-595.22,0.00017808,2]
[323135619,1713703861009,-1593.43,0.00017808,2]
[323135620,1713703861018,-604.06,0.00017808,2]
[323135621,1713703861032,-702.98,0.00017808,2]
[323135622,1713703861042,-2060.1,0.00017808,2]
[323135623,1713703861052,-926.58,0.00017808,2]
[323135624,1713703861062,-2018.56,0.00017808,2]
[323135625,1713703861075,-873.45,0.00017808,2]
[323135626,1713703861086,-607.23,0.00017808,2]
[323135627,1713703861096,-500.0,0.00017808,2]
[323135628,1713703861107,-1503.38,0.00017808,2]
[323135629,1713703861116,-847.45,0.00017808,2]
[323135630,1713703861127,-1239.54,0.00017808,2]
[323135631,1713703861136,-760.18,0.00017808,2]
[323135632,1713703861146,-1006.77,0.00017808,2]
[323135633,1713703861156,-1850.19,0.00017808,2]
[323135634,1713703861166,-1602.29,0.00017808,2]
[323135635,1713703861176,-715.92,0.00017808,2]
[323135636,1713703861186,-780.11,0.00017808,2]
[323135637,1713703861197,-991.79,0.00017808,2]
[323135638,1713703861206,-670.99,0.00017808,2]
[323135639,1713703861216,-500.0,0.00017808,2]
[323135640,1713703861226,-500.0,0.00017808,2]
[323135641,1713703861236,-1188.1,0.00017808,2]
[323135642,1713703861246,-500.0,0.00017808,2]
[323135643,1713703861255,-646.16,0.00017808,2]
[323135644,1713703861265,-1590.79,0.00017808,2]
[323135645,1713703861275,-715.59,0.00017808,2]
[323135646,1713703861284,-958.53,0.00017808,2]